bitfinex/quotes_BTCUSD_20251104
["timestamp","ask_amount","ask_price","bid_price","bid_amount"]
[1762295113907,0.67775797,101140.0,101130.0,1e-08]
[1762295115660,0.64157569,101140.0,101130.0,1e-08]
[1762295115883,0.30157569,101140.0,101130.0,0.6295845]
[1762295116315,0.30157569,101140.0,101130.0,0.63958449]
[1762295116742,0.19774569,101140.0,101130.0,0.67318449]
[1762295116936,0.20074569,101140.0,101130.0,0.72965448]
[1762295117145,0.19774569,101140.0,101130.0,0.71965449]
[1762295117340,0.19774569,101140.0,101130.0,0.72965448]
[1762295117478,0.19974569,101140.0,101130.0,0.71965449]
[1762295117688,0.19974569,101140.0,101130.0,0.68318448]
[1762295117896,0.24333569,101140.0,101130.0,0.68318448]
[1762295118318,0.24133569,101140.0,101130.0,0.68318448]
[1762295118522,0.19974569,101140.0,101130.0,0.68318448]
[1762295118921,0.002,101140.0,101130.0,0.92741973]
[1762295119176,0.19974569,101140.0,101130.0,0.91741974]
[1762295119413,0.19974569,101140.0,101130.0,0.72965448]
[1762295119692,0.19974569,101140.0,101130.0,0.88094973]
[1762295119840,0.23279569,101140.0,101130.0,0.68318448]
[1762295120040,0.23279569,101140.0,101130.0,0.67318449]
[1762295120240,0.30345569,101140.0,101130.0,0.68318448]
[1762295120673,0.23279569,101140.0,101130.0,0.68318448]
[1762295120879,0.30345569,101140.0,101130.0,0.64958448]
[1762295121082,0.33963797,101140.0,101130.0,1e-08]
[1762295121294,0.67963797,101140.0,101130.0,1e-08]
[1762295123467,0.67763797,101140.0,101130.0,1e-08]
[1762295123656,0.67963797,101140.0,101130.0,1e-08]
[1762295123858,0.67763797,101140.0,101130.0,1e-08]
[1762295124266,0.68063797,101140.0,101130.0,1e-08]
[1762295126988,0.68063797,101140.0,101130.0,0.6295845]
[1762295127189,0.68063797,101140.0,101130.0,1e-08]
[1762295127504,0.64445569,101140.0,101130.0,0.6295845]
[1762295127728,0.68063797,101140.0,101130.0,1e-08]
[1762295127926,0.20769361,101120.0,101100.0,0.62958449]
[1762295128153,0.23399437,101110.0,101100.0,0.62972856]
[1762295128360,0.26803437,101110.0,101100.0,0.63972855]
[1762295128604,0.33870437,101110.0,101100.0,0.62972856]
[1762295128802,0.23184437,101110.0,101100.0,0.02014405]
[1762295129060,0.33869437,101110.0,101100.0,0.02014405]
[1762295129261,0.33869437,101110.0,101100.0,0.64972854]
[1762295129902,0.33869437,101110.0,101100.0,0.02014405]
[1762295130118,0.46023987,101110.0,101100.0,0.00114407]
[1762295130718,0.46023987,101110.0,101100.0,0.00014407]
[1762295130949,0.14089,101110.0,101100.0,0.62972856]
[1762295131156,0.34069437,101110.0,101100.0,0.62972856]
[1762295131562,0.34069437,101110.0,101100.0,0.197968]
[1762295131793,0.14289,101110.0,101100.0,0.82755249]
[1762295131953,0.34069437,101110.0,101100.0,0.62972856]
[1762295132154,0.34069437,101110.0,101100.0,0.82755249]
[1762295132330,0.34069437,101110.0,101100.0,0.62972856]
[1762295133177,0.34069437,101110.0,101100.0,0.197968]
[1762295133377,0.34069437,101110.0,101100.0,0.62972856]
[1762295133694,0.0722,101110.0,101100.0,0.82755249]
[1762295133938,0.002,101110.0,101100.0,0.95742247]
[1762295134126,0.14292,101110.0,101100.0,0.00014407]
[1762295134315,0.83654029,101110.0,101100.0,0.00014407]
[1762295135287,0.80226987,101110.0,101100.0,0.00014407]
[1762295139292,0.80226987,101110.0,101100.0,0.62972856]
[1762295139494,0.34072437,101110.0,101100.0,0.82755249]
[1762295139689,0.30890665,101110.0,101100.0,0.85155249]
[1762295139891,0.11110228,101110.0,101100.0,0.82755249]
[1762295140095,0.11110228,101110.0,101100.0,0.85155249]
[1762295140646,0.11110228,101110.0,101100.0,0.82755249]
[1762295140875,0.07068228,101110.0,101100.0,0.197968]
[1762295141083,0.46228987,101110.0,101100.0,0.00014407]
[1762295141289,0.46228987,101110.0,101100.0,0.62972856]
[1762295141510,0.46228987,101110.0,101100.0,0.00014407]
[1762295141961,0.33464665,101110.0,101100.0,0.67492856]
[1762295142174,0.002,101110.0,101100.0,0.94876248]
[1762295142589,0.002,101110.0,101100.0,0.88275248]
[1762295142794,0.19980437,101110.0,101100.0,0.90675248]
[1762295142996,0.46229987,101110.0,101100.0,0.62972856]
[1762295143923,0.46229987,101110.0,101100.0,0.85155249]
[1762295144133,0.03281,101110.0,101100.0,0.87275249]
[1762295144377,0.002,101110.0,101100.0,0.87275249]
[1762295144594,0.002,101110.0,101100.0,0.96276249]
[1762295145005,0.002,101110.0,101100.0,1.30276249]
[1762295145204,0.002,101110.0,101100.0,1.36804247]
[1762295145834,0.002,101110.0,101100.0,1.39930912]
[1762295146454,0.03619,101130.0,101120.0,0.22178481]
[1762295146667,0.03619,101130.0,101120.0,0.26698481]
[1762295146865,0.00199246,101140.0,101130.0,0.19776525]
[1762295147072,0.39908123,101150.0,101130.0,0.85134974]
[1762295147232,0.77526351,101150.0,101140.0,0.62958449]
[1762295147635,0.82160351,101150.0,101140.0,0.62958449]
[1762295148499,0.82160351,101150.0,101140.0,0.00014407]
[1762295149234,0.92316048,101150.0,101140.0,0.00014407]
[1762295149373,0.92116048,101150.0,101140.0,0.00014407]
[1762295149764,0.92216048,101150.0,101140.0,0.00014407]
[1762295151332,0.92116048,101150.0,101140.0,0.00014407]
[1762295151807,0.92316048,101150.0,101140.0,0.00014407]
[1762295153843,0.19776525,101130.0,101120.0,0.62685351]
[1762295154047,0.28484847,101130.0,101120.0,0.62972862]
[1762295154259,0.35124847,101130.0,101120.0,0.62972862]
[1762295154460,0.35124847,101130.0,101120.0,0.85268765]
[1762295154664,0.35124847,101130.0,101110.0,0.26109404]
[1762295154878,0.31206727,101120.0,101110.0,0.00014415]
[1762295155104,0.34625709,101120.0,101110.0,0.00014415]
[1762295155339,2.68625709,101120.0,101110.0,0.00014415]
[1762295155789,0.19785125,101090.0,101080.0,0.85254499]
[1762295156003,0.21643125,101090.0,101080.0,0.19800731]
[1762295156210,0.08498,101090.0,101080.0,1.06088814]
[1762295156415,0.01858,101090.0,101080.0,1.05797186]
[1762295156629,0.45787322,101110.0,101100.0,0.19782393]
[1762295156850,0.80459987,101110.0,101090.0,1.09446433]
[1762295157049,0.20256393,101100.0,101090.0,1.09446433]
[1762295157259,0.20256393,101100.0,101080.0,0.21785761]
[1762295157260,0.36504631,101100.0,101080.0,0.21785761]
[1762295157468,0.34840824,101090.0,101080.0,0.19786307]
[1762295157686,0.19786307,101080.0,101070.0,0.85288084]
[1762295157896,0.33771535,101080.0,101070.0,0.00014427]
[1762295158569,0.33771535,101080.0,101070.0,0.84994018]
[1762295158797,0.19788265,101070.0,101060.0,0.00999999]
[1762295159017,0.27675223,101060.0,101050.0,1.09125993]
[1762295159240,0.27675223,101060.0,101050.0,0.04093726]
[1762295159528,0.34315223,101060.0,101050.0,0.85336074]
[1762295159960,0.39128337,101060.0,101050.0,0.85336074]
[1762295160181,0.33412182,101050.0,101040.0,0.00986303]
[1762295160416,0.37078424,101050.0,101040.0,1.0510268]
[1762295160631,0.10646242,101050.0,101040.0,1.0750268]
[1762295160848,0.10646242,101050.0,101040.0,1.0510268]
[1762295161064,0.30438424,101050.0,101040.0,1.0480852]
[1762295161288,0.37078424,101050.0,101040.0,0.85288084]
[1762295161515,0.37078424,101050.0,101030.0,0.71605978]
[1762295161727,0.37078424,101050.0,101040.0,1.04992928]
[1762295161944,0.37078424,101050.0,101040.0,0.002]
[1762295162158,0.37078424,101050.0,101040.0,0.85488084]
[1762295162562,0.37078424,101050.0,101040.0,0.85288084]
[1762295163189,0.37078424,101050.0,101030.0,0.55603483]
[1762295163401,0.34876614,101040.0,101030.0,0.68659736]
[1762295163616,0.14883228,101040.0,101030.0,1.5394782]
[1762295163835,0.09939014,101050.0,101030.0,0.71741709]
[1762295164043,0.38267568,101050.0,101040.0,0.85388084]
[1762295164255,0.46519796,101050.0,101040.0,0.19597903]
[1762295164461,0.26727564,101050.0,101040.0,1.07184402]
[1762295164664,0.03299014,101050.0,101040.0,1.11670901]
[1762295164870,0.00048014,101050.0,101040.0,1.1832722]
[1762295165073,0.00048014,101050.0,101040.0,1.20293066]
[1762295165280,0.00048014,101050.0,101040.0,1.20393066]
[1762295165699,0.00048014,101050.0,101040.0,1.24917066]
[1762295166319,0.00048014,101050.0,101040.0,1.24624732]
[1762295166937,0.00048014,101050.0,101040.0,1.2430125]
[1762295167390,0.00048014,101050.0,101040.0,1.1550025]
[1762295167610,0.1477226,101050.0,101040.0,0.91067402]
[1762295167815,0.1477226,101050.0,101040.0,1.05337543]
[1762295167816,0.14573014,101050.0,101040.0,1.05337543]
[1762295168020,0.14573014,101050.0,101040.0,1.07737543]
[1762295168225,0.03299014,101050.0,101040.0,1.05337543]
[1762295168439,0.34365196,101050.0,101040.0,1.05337543]
[1762295168642,0.46519746,101050.0,101040.0,0.00255319]
[1762295170321,0.1979414,101040.0,101020.0,8e-05]
[1762295170536,3.0893581,101030.0,101020.0,8e-05]
[1762295170731,2.3443965,101030.0,101020.0,8e-05]
[1762295170976,0.3757848,101030.0,101020.0,8e-05]
[1762295171181,0.7157848,101030.0,101020.0,8e-05]
[1762295171386,0.71544328,101030.0,101020.0,8e-05]
[1762295171584,2.2832881,101050.0,101020.0,1.13810044]
[1762295171873,0.03618228,101040.0,101030.0,0.228311]
[1762295172111,0.28329062,101050.0,101030.0,0.88323084]
[1762295172264,0.08536322,101050.0,101030.0,1.0811903]
[1762295172472,0.08536322,101050.0,101040.0,0.1979414]
[1762295172678,0.08536322,101050.0,101040.0,1.05082224]
[1762295172893,0.08536322,101050.0,101040.0,1.09408224]
[1762295173105,0.29314501,101070.0,101060.0,0.19790223]
[1762295173106,0.08536322,101070.0,101060.0,0.19790223]
[1762295173303,0.08536322,101070.0,101060.0,0.19820238]
[1762295173497,0.1215455,101070.0,101060.0,0.19820238]
[1762295173914,0.31022771,101070.0,101060.0,0.00030015]
[1762295174127,0.08536322,101070.0,101060.0,0.19820238]
[1762295174345,0.1215455,101070.0,101060.0,0.19820238]
[1762295174582,0.32142061,101070.0,101060.0,0.00030015]
[1762295174791,0.03718228,101070.0,101060.0,1.05108322]
[1762295175001,0.001,101070.0,101060.0,1.18952169]
[1762295175856,0.001,101070.0,101060.0,0.31264085]
[1762295176063,0.001,101070.0,101060.0,1.16552169]
[1762295176279,0.001,101070.0,101060.0,1.18952169]
[1762295176479,0.001,101070.0,101060.0,1.16552169]
[1762295176726,0.001,101070.0,101060.0,1.18952169]
[1762295176927,0.03618228,101080.0,101070.0,0.19788265]
[1762295177148,0.03618228,101080.0,101070.0,1.14837349]
[1762295177717,0.00672,101090.0,101080.0,0.23152154]
[1762295177919,0.20776907,101120.0,101080.0,0.23152154]
[1762295177920,0.19778481,101120.0,101100.0,0.19782393]
[1762295178125,0.01199343,101120.0,101110.0,0.19780437]
[1762295178364,0.01199343,101120.0,101110.0,0.22815437]
[1762295178559,0.04817571,101120.0,101110.0,0.29541437]
[1762295178737,0.42536322,101130.0,101120.0,0.19778481]
[1762295178981,0.20763358,101140.0,101120.0,1.09392565]
[1762295179124,0.28312847,101130.0,101120.0,0.89644099]
[1762295179331,0.28312847,101130.0,101120.0,0.00030015]
[1762295179806,0.08536322,101130.0,101120.0,0.19808496]
[1762295180007,0.08536322,101130.0,101120.0,0.22208496]
[1762295180008,0.1215455,101130.0,101120.0,0.22208496]
[1762295180140,0.08536322,101130.0,101120.0,0.19808496]
[1762295180342,0.28312847,101130.0,101120.0,0.00030015]
[1762295180542,0.1215455,101130.0,101120.0,0.19808496]
[1762295180998,0.31931075,101130.0,101120.0,0.22208496]
[1762295181200,0.1215455,101130.0,101120.0,0.19808496]
[1762295181413,0.03718228,101130.0,101120.0,0.24134496]
[1762295181618,0.03718228,101130.0,101120.0,1.1557458]
[1762295181772,0.03718228,101130.0,101120.0,1.0942258]
[1762295181976,0.1225455,101130.0,101120.0,1.0942258]
[1762295182270,0.1225455,101130.0,101120.0,1.1557458]
[1762295182678,0.001,101130.0,101120.0,1.16540427]
[1762295183089,0.001,101130.0,101120.0,1.10388427]
[1762295183322,0.001,101130.0,101120.0,1.16540427]
[1762295183522,0.001,101130.0,101120.0,1.19940426]
[1762295183699,0.001,101130.0,101120.0,0.34652342]
[1762295183911,0.01182157,101150.0,101140.0,0.19774569]
[1762295184115,0.04800385,101150.0,101140.0,0.27135569]
[1762295184314,0.28308936,101150.0,101140.0,0.03035]
[1762295184730,0.19774569,101140.0,101130.0,0.22811525]
[1762295184937,0.19774569,101140.0,101130.0,0.25211525]
[1762295185152,0.19774569,101140.0,101130.0,0.22811525]
[1762295185378,0.19776525,101130.0,101120.0,0.00995862]
[1762295185596,0.31931075,101130.0,101120.0,0.00030015]
[1762295186013,0.33370852,101130.0,101120.0,0.00030015]
[1762295186210,0.31931075,101130.0,101120.0,0.19808496]
[1762295186619,0.32153564,101130.0,101120.0,0.00030015]
[1762295187789,0.32253564,101130.0,101120.0,0.19808496]
[1762295188204,0.32253564,101130.0,101120.0,0.00030015]
[1762295188652,0.32253564,101130.0,101120.0,0.19808496]
[1762295189085,0.32253564,101130.0,101120.0,0.00030015]
[1762295190612,0.66253564,101130.0,101120.0,0.00030015]
[1762295191486,0.69224283,101130.0,101120.0,0.00030015]
[1762295191906,0.66253564,101130.0,101120.0,0.00030015]
[1762295194466,3.51541648,101130.0,101120.0,0.00030015]
[1762295194690,2.76209261,101130.0,101120.0,0.00030015]
[1762295194925,0.1978435,101090.0,101080.0,0.19786178]
[1762295195143,0.23400621,101100.0,101080.0,0.19800615]
[1762295195354,0.08536322,101090.0,101080.0,0.19800615]
[1762295195562,0.28519918,101090.0,101080.0,0.19800744]
[1762295195773,0.28320672,101090.0,101080.0,0.19800744]
[1762295195980,0.28320672,101090.0,101080.0,0.22200744]
[1762295196204,0.03618228,101100.0,101090.0,0.1978435]
[1762295196412,0.4615455,101110.0,101100.0,0.19780584]
[1762295196618,0.1215455,101110.0,101100.0,0.19780584]
[1762295196821,0.1215455,101110.0,101100.0,0.22180584]
[1762295197028,0.1215455,101110.0,101100.0,0.19780584]
[1762295197248,0.31783652,101130.0,101120.0,0.19778481]
[1762295197562,0.33567542,101130.0,101120.0,0.19778481]
[1762295197708,0.08536322,101130.0,101120.0,0.19778481]
[1762295197932,0.19774569,101140.0,101120.0,0.20744328]
[1762295198158,0.08536322,101130.0,101120.0,0.22724328]
[1762295198380,0.08536322,101130.0,101120.0,0.29572328]
[1762295198599,0.08736322,101130.0,101120.0,0.37189765]
[1762295198812,0.08536322,101130.0,101120.0,0.37189765]
[1762295199302,0.08536322,101130.0,101120.0,0.34789765]
[1762295199970,0.28312847,101130.0,101120.0,0.34789765]
[1762295200205,0.28312847,101130.0,101120.0,0.08583284]
[1762295200427,0.28312847,101130.0,101120.0,0.03096437]
[1762295200879,0.28535338,101130.0,101120.0,0.00014437]
[1762295201085,0.32153566,101130.0,101120.0,0.00014437]
[1762295201535,0.66153566,101130.0,101120.0,0.00014437]
[1762295201937,0.66253566,101130.0,101120.0,0.00014437]
[1762295202220,0.66253566,101130.0,101120.0,0.22192918]
[1762295202444,0.12477041,101130.0,101120.0,0.30283918]
[1762295202904,0.12377041,101130.0,101120.0,0.32683918]
[1762295203312,0.12577041,101130.0,101120.0,0.24231918]
[1762295203514,0.32353566,101130.0,101120.0,0.19792918]
[1762295203724,0.32153566,101130.0,101120.0,0.19792918]
[1762295203929,0.32253566,101130.0,101120.0,0.19792918]
[1762295204147,0.32253566,101130.0,101120.0,0.22192918]
[1762295204372,0.32253566,101130.0,101120.0,0.19792918]
[1762295204793,0.32253566,101130.0,101120.0,0.00014437]
[1762295205237,0.32253566,101130.0,101120.0,0.22192918]
[1762295205443,0.32253566,101130.0,101120.0,0.19792918]
[1762295205675,0.32253566,101130.0,101120.0,0.22192918]
[1762295205806,0.32253566,101130.0,101120.0,0.00014437]
[1762295206416,0.12477041,101130.0,101120.0,0.19792918]
[1762295206629,0.32253566,101130.0,101120.0,0.19792918]
[1762295207446,0.32253566,101130.0,101120.0,0.22192918]
[1762295207844,0.32253566,101130.0,101120.0,0.00014437]
[1762295208065,0.37456379,101130.0,101120.0,0.00014437]
[1762295208887,2.71456379,101130.0,101120.0,0.00014437]
[1762295209115,0.23400621,101100.0,101080.0,0.20752154]
[1762295209290,0.23400621,101100.0,101080.0,0.20766606]
[1762295209291,0.31936943,101100.0,101080.0,0.20766606]
[1762295209512,0.1978435,101090.0,101080.0,0.19800759]
[1762295209675,0.23402578,101090.0,101080.0,0.00014452]
[1762295210536,0.23402578,101090.0,101080.0,0.19800759]
[1762295210748,0.03618228,101090.0,101080.0,1.15579843]
[1762295211064,0.66925778,101110.0,101100.0,0.19782393]
[1762295211242,0.75992552,101110.0,101100.0,0.19782393]
[1762295211402,0.03618228,101100.0,101090.0,0.23021603]
[1762295212009,0.03618228,101100.0,101090.0,0.29860603]
[1762295212872,0.03618228,101100.0,101090.0,0.27460603]
[1762295213879,0.03618228,101100.0,101090.0,0.29860603]
[1762295214287,0.03618228,101100.0,101090.0,0.27460603]
[1762295214485,0.03618228,101100.0,101090.0,0.98938991]
[1762295215097,0.0019487,101110.0,101100.0,0.19782393]
[1762295215408,0.0019487,101110.0,101100.0,0.95699781]
[1762295216432,0.0019487,101110.0,101100.0,0.96665628]
[1762295216812,0.0019487,101110.0,101100.0,0.96765628]
[1762295217303,0.0019487,101110.0,101100.0,0.94365628]
[1762295217508,0.0019487,101110.0,101100.0,0.96765628]
[1762295217721,0.0019487,101110.0,101100.0,0.97765627]
[1762295218490,0.0019487,101110.0,101100.0,0.95365627]
[1762295218917,0.0019487,101110.0,101100.0,0.97765627]
[1762295219668,0.0019487,101110.0,101100.0,0.34739239]
[1762295219863,0.0019487,101110.0,101100.0,0.32339239]
[1762295220089,0.0019487,101110.0,101100.0,0.97765627]
[1762295220503,0.0019487,101110.0,101100.0,0.95365627]
[1762295220680,0.0019487,101110.0,101100.0,0.97765627]
[1762295221290,0.0019487,101110.0,101100.0,0.95365627]
[1762295221488,0.0019487,101110.0,101100.0,0.96765628]
[1762295221696,0.0019487,101110.0,101100.0,0.97765627]
[1762295222459,0.0019487,101110.0,101100.0,0.95365627]
[1762295222704,0.0019487,101110.0,101100.0,0.97765627]
[1762295223132,0.0019487,101110.0,101100.0,1.31765627]
[1762295223286,0.0019487,101110.0,101100.0,1.36281627]
[1762295223490,0.0019487,101110.0,101100.0,1.39698162]
[1762295223763,0.0019487,101110.0,101100.0,1.37298162]
[1762295223953,0.62309125,101150.0,101140.0,0.22174569]
[1762295224148,0.62309125,101150.0,101140.0,0.19774569]
[1762295224352,0.65927353,101150.0,101140.0,0.22174569]
[1762295224564,0.65927353,101150.0,101140.0,0.19774569]
[1762295224937,0.23392797,101140.0,101130.0,0.86041913]
[1762295225116,0.23392797,101140.0,101130.0,0.86056365]
[1762295225321,0.23392797,101140.0,101130.0,0.00014452]
[1762295225526,0.03618228,101140.0,101130.0,0.27468977]
[1762295225949,0.23392797,101140.0,101130.0,0.29868977]
[1762295226441,0.23392797,101140.0,101130.0,0.27468977]
[1762295226628,0.23392797,101140.0,101130.0,0.29868977]
[1762295227850,0.03618228,101140.0,101130.0,0.33520977]
[1762295228036,0.03618228,101140.0,101130.0,0.35920977]
[1762295228572,0.23392797,101140.0,101130.0,0.35920977]
[1762295228774,0.23392797,101140.0,101130.0,0.33520977]
[1762295229048,0.23392797,101140.0,101130.0,0.92895365]
[1762295229384,0.03618228,101140.0,101130.0,0.96547365]
[1762295229590,0.23392797,101140.0,101130.0,0.96547365]
[1762295229785,0.23392797,101140.0,101130.0,0.90495365]
[1762295230105,0.23392797,101140.0,101130.0,0.29868977]
[1762295230311,0.23392797,101140.0,101130.0,0.27468977]
[1762295230672,0.23392797,101140.0,101130.0,0.29868977]
[1762295231403,0.23392797,101140.0,101130.0,0.27061977]
[1762295231626,0.20941383,101160.0,101140.0,0.19772946]
[1762295231827,0.1215455,101150.0,101140.0,0.82799334]
[1762295232028,0.1215455,101150.0,101140.0,0.85199334]
[1762295232230,0.1215455,101150.0,101140.0,0.89231334]
[1762295232481,0.54941383,101160.0,101150.0,0.19772614]
[1762295232482,0.5377079,101160.0,101150.0,0.19772614]
[1762295232650,0.57389018,101160.0,101150.0,0.22884614]
[1762295232894,0.57121347,101160.0,101150.0,0.29316614]
[1762295233200,0.57121347,101160.0,101150.0,0.26916614]
[1762295233484,0.57121347,101160.0,101150.0,0.29316614]
[1762295233657,0.03618228,101160.0,101150.0,0.29316614]
[1762295233862,0.03618228,101160.0,101150.0,0.96268002]
[1762295234273,0.23788888,101160.0,101150.0,0.98668002]
[1762295234472,0.23388888,101160.0,101150.0,0.07144]
[1762295234680,0.29473806,101170.0,101150.0,0.33241614]
[1762295234846,0.1997066,101160.0,101150.0,0.93201849]
[1762295235039,0.002,101160.0,101150.0,0.93201849]
[1762295235298,0.28305185,101170.0,101160.0,0.1977066]
[1762295235480,0.2076792,101180.0,101160.0,0.86829048]
[1762295235687,0.2076792,101180.0,101170.0,0.29312706]
[1762295236008,0.2076792,101180.0,101170.0,0.35637706]
[1762295236328,0.00153153,101180.0,101170.0,0.33237706]
[1762295236461,0.23538133,101180.0,101170.0,0.33237706]
[1762295236665,0.00153153,101180.0,101170.0,0.97229941]
[1762295236870,0.10081183,101190.0,101180.0,0.19766752]
[1762295237094,0.10081183,101190.0,101180.0,0.94130439]
[1762295237248,0.20763824,101200.0,101180.0,0.96530439]
[1762295237460,0.08536322,101190.0,101180.0,0.96530439]
[1762295237694,0.20763824,101200.0,101190.0,0.07144]
[1762295237910,0.58382052,101200.0,101190.0,0.07144]
[1762295238151,0.19762845,101200.0,101190.0,0.26908798]
[1762295238557,0.23381073,101200.0,101190.0,0.89935186]
[1762295238713,0.23483026,101190.0,101180.0,0.00014452]
[1762295239100,0.31919348,101190.0,101180.0,0.00014452]
[1762295239318,3.28945736,101190.0,101180.0,0.00014452]
[1762295239854,2.65919348,101190.0,101180.0,0.00014452]
[1762295240058,0.65919348,101190.0,101180.0,0.00014452]
[1762295240264,0.75875045,101190.0,101180.0,0.00014452]
[1762295240470,1.38901433,101190.0,101180.0,0.00014452]
[1762295240902,1.39501433,101190.0,101180.0,0.00014452]
[1762295241536,0.19772614,101150.0,101140.0,0.00965847]
[1762295241733,0.23392797,101140.0,101130.0,0.04204847]
[1762295241944,0.23392797,101140.0,101130.0,0.04252948]
[1762295242358,0.23392797,101140.0,101130.0,0.03287101]
[1762295243733,0.23392797,101140.0,101130.0,0.27195626]
[1762295243971,0.23392797,101140.0,101130.0,0.23163626]
[1762295244204,0.23392797,101140.0,101130.0,0.66413489]
[1762295244407,0.23392797,101140.0,101130.0,0.70445489]
[1762295244609,0.23392797,101140.0,101130.0,0.03387101]
[1762295245722,0.23392797,101140.0,101130.0,0.23163626]
[1762295245938,0.03618228,101140.0,101130.0,0.98947014]
[1762295247536,0.03618228,101140.0,101130.0,0.96547014]
[1762295247784,0.03618228,101140.0,101130.0,0.98947014]
[1762295248066,0.19774569,101140.0,101130.0,0.96547014]
[1762295248286,0.28308936,101150.0,101130.0,0.96547014]
[1762295248488,0.19774569,101140.0,101130.0,0.90222014]
[1762295248768,0.19774569,101140.0,101130.0,0.70445489]
[1762295248994,0.19774569,101140.0,101130.0,0.66413489]
[1762295250671,0.28308936,101150.0,101130.0,0.96547014]
[1762295250873,0.24883857,101160.0,101140.0,0.93157957]
[1762295251038,0.08536322,101150.0,101140.0,0.93157957]
[1762295251649,0.24377421,101160.0,101150.0,0.19772614]
[1762295251860,0.24377421,101160.0,101150.0,0.88296002]
[1762295252066,0.03618228,101160.0,101150.0,0.85896002]
[1762295252269,0.30478869,101170.0,101160.0,0.1977066]
[1762295252470,0.29296868,101170.0,101160.0,0.82797048]
[1762295252742,0.20931004,101180.0,101160.0,0.93009048]
[1762295252950,0.57412342,101180.0,101170.0,0.19768706]
[1762295253157,0.23412342,101180.0,101170.0,0.19768706]
[1762295253329,0.23412342,101180.0,101160.0,0.89078048]
[1762295253478,0.08536322,101170.0,101160.0,0.91478048]
[1762295253673,0.28305028,101170.0,101160.0,0.82797048]
[1762295253907,0.08536322,101170.0,101160.0,0.86728048]
[1762295254078,0.28305028,101170.0,101160.0,0.93157149]
[1762295254413,0.28305028,101170.0,101160.0,0.86776149]
[1762295255095,0.28305028,101170.0,101160.0,0.82845149]
[1762295255324,0.28305028,101170.0,101160.0,0.00048101]
[1762295255856,0.28305028,101170.0,101160.0,0.20118761]
[1762295256031,0.28305028,101170.0,101160.0,0.00348101]
[1762295256917,0.28305028,101170.0,101160.0,0.04279101]
[1762295257117,0.28305028,101170.0,101160.0,0.24049761]
[1762295257930,0.28305028,101170.0,101160.0,0.04279101]
[1762295263410,0.28305028,101170.0,101160.0,0.24049761]
[1762295263589,0.28305028,101170.0,101160.0,0.29905761]
[1762295263794,0.28305028,101170.0,101160.0,0.32305761]
[1762295263992,0.28305028,101170.0,101160.0,0.26449761]
[1762295264199,0.28305028,101170.0,101160.0,0.24049761]
[1762295265050,0.28305028,101170.0,101160.0,0.04279101]
[1762295266240,0.28305028,101170.0,101160.0,0.00348101]
[1762295266441,0.28305028,101170.0,101160.0,0.04232101]
[1762295267978,0.57412342,101180.0,101160.0,0.24002761]
[1762295268197,0.19789729,101180.0,101170.0,0.26798706]
[1762295268419,0.19789729,101180.0,101170.0,0.89825094]
[1762295268855,0.19789333,101180.0,101170.0,0.95681094]
[1762295269143,0.19789333,101180.0,101170.0,0.98081094]
[1762295269343,0.00022581,101180.0,101170.0,0.95681094]
[1762295269562,0.00022581,101180.0,101170.0,0.96646941]
[1762295269770,0.19789333,101180.0,101170.0,0.33620553]
[1762295269906,0.19789333,101180.0,101170.0,0.96646941]
[1762295270343,0.00022581,101180.0,101170.0,0.96646941]
[1762295270498,0.00022581,101180.0,101170.0,0.99046941]
[1762295270940,0.00022581,101180.0,101170.0,0.96646941]
[1762295271141,0.00022581,101180.0,101170.0,0.99046941]
[1762295271677,0.00022581,101180.0,101170.0,0.99246941]
[1762295272582,0.00022581,101180.0,101170.0,0.96846941]
[1762295272789,0.00022581,101180.0,101170.0,1.3184694]
[1762295273287,0.00022581,101180.0,101170.0,1.36794729]
[1762295274078,0.00022581,101180.0,101170.0,1.37918253]
[1762295274280,0.00022581,101180.0,101170.0,1.37718253]
[1762295274477,0.00022581,101180.0,101170.0,1.45023321]
[1762295274701,0.00022581,101180.0,101170.0,1.47423321]
[1762295274842,0.00022581,101180.0,101170.0,1.45023321]
[1762295275046,0.00022581,101180.0,101170.0,0.73921744]
[1762295275273,0.00022581,101180.0,101170.0,1.3164694]
[1762295275599,0.00022581,101180.0,101170.0,0.9814694]
[1762295275600,0.19789333,101180.0,101170.0,0.9814694]
[1762295275955,0.00022581,101180.0,101170.0,1.0004694]
[1762295276150,0.00022581,101180.0,101170.0,0.9794694]
[1762295276358,0.00022581,101180.0,101170.0,1.22490837]
[1762295277164,0.00022581,101180.0,101170.0,1.20090837]
[1762295277364,0.00022581,101180.0,101170.0,1.22490837]
[1762295278223,0.00022581,101180.0,101170.0,1.20090837]
[1762295278439,0.00022581,101180.0,101170.0,0.34920552]
[1762295278657,0.00022581,101180.0,101170.0,1.20090837]
[1762295278857,0.00022581,101180.0,101170.0,1.22490837]
[1762295279064,0.19789333,101180.0,101170.0,1.01756284]
[1762295279195,0.19789333,101180.0,101170.0,0.08295847]
[1762295279389,0.19789333,101180.0,101170.0,0.28064553]
[1762295279677,0.19789333,101180.0,101170.0,0.36320553]
[1762295279864,0.19789333,101180.0,101170.0,0.30464553]
[1762295280063,0.00022581,101180.0,101170.0,0.33920553]
[1762295280261,0.00022581,101180.0,101170.0,0.34920552]
[1762295280414,0.00022581,101180.0,101170.0,1.20090837]
[1762295280657,0.00022581,101180.0,101170.0,1.19790837]
[1762295280857,0.00022581,101180.0,101170.0,1.22390837]
[1762295281253,0.00022581,101180.0,101170.0,1.19990837]
[1762295281459,0.00022581,101180.0,101170.0,1.22390837]
[1762295281713,0.00022581,101180.0,101170.0,1.22190837]
[1762295281903,0.00022581,101180.0,101170.0,1.19790837]
[1762295282072,0.00022581,101180.0,101170.0,1.20090837]
[1762295282479,0.00022581,101180.0,101170.0,1.22490837]
[1762295282800,0.19988579,101180.0,101170.0,0.003]
[1762295283000,0.19789333,101180.0,101170.0,0.003]
[1762295283200,0.28236534,101180.0,101170.0,0.003]
[1762295283409,2.62236534,101180.0,101170.0,0.003]
[1762295283603,0.19768706,101170.0,101160.0,0.00048101]
[1762295283764,0.28305028,101170.0,101160.0,0.00048101]
[1762295283960,0.38260725,101170.0,101160.0,0.00048101]
[1762295284167,0.75878953,101170.0,101160.0,0.00048101]
[1762295284398,3.64014565,101170.0,101160.0,0.00048101]
[1762295284609,3.66984266,101170.0,101160.0,0.00048101]
[1762295284829,3.64018939,101170.0,101160.0,0.00048101]
[1762295285036,2.79048654,101170.0,101160.0,0.00048101]
[1762295287363,2.69092957,101170.0,101160.0,0.00048101]
[1762295287561,2.66123256,101170.0,101160.0,0.00048101]
[1762295289475,2.66123256,101170.0,101120.0,0.03112]
[1762295289476,0.19776525,101130.0,101120.0,0.03112]
[1762295289605,0.19778481,101120.0,101110.0,0.96332907]
[1762295289812,0.19778481,101120.0,101110.0,0.96342408]
[1762295290009,0.19778481,101120.0,101110.0,1.20006845]
[1762295290210,0.28312847,101130.0,101120.0,0.01965846]
[1762295290452,0.19778481,101120.0,101110.0,1.20006845]
[1762295290651,0.28312847,101130.0,101120.0,0.00999999]
[1762295291055,0.19778481,101120.0,101110.0,1.17522846]
[1762295291254,0.19778481,101120.0,101110.0,1.10266845]